bitfinex/quotes_ETHUSD_20251120
["timestamp","ask_amount","ask_price","bid_price","bid_amount"]
[1763651901325,0.118,2982.2,2980.8,7.203659]
[1763651901475,0.6032,2982.2,2980.9,0.8015459]
[1763651901671,0.6032,2982.2,2980.7,0.1955]
[1763651901876,0.6032,2982.3,2980.8,0.1955]
[1763651902118,0.4852,2983.4,2981.4,0.90699264]
[1763651902323,0.4852,2984.0,2982.4,1.31249664]
[1763651902530,0.4852,2984.0,2982.6,0.405504]
[1763651902735,0.4852,2984.0,2982.5,0.96961556]
[1763651902736,3.35131874,2983.9,2982.5,0.85161556]
[1763651902933,3.35131874,2983.9,2982.1,0.405504]
[1763651902934,0.90699264,2983.8,2982.1,0.405504]
[1763651903144,0.118,2983.7,2982.0,0.90699264]
[1763651903431,0.1831,2982.1,2980.9,3.35469153]
[1763651903636,0.90699264,2983.6,2980.9,7.20768306]
[1763651903796,0.1831,2982.6,2980.9,6.70938306]
[1763651904136,0.4844,2982.5,2981.0,1.40529264]
[1763651904309,0.4844,2982.5,2981.0,0.6163]
[1763651904502,0.4844,2982.5,2981.0,0.4983]
[1763651904705,0.6024,2982.5,2981.1,6.70893294]
[1763651905018,0.6024,2982.5,2981.4,0.90699264]
[1763651905019,0.118,2982.5,2981.4,0.90699264]
[1763651905336,0.118,2982.5,2981.5,0.03354016]
[1763651905501,0.118,2982.5,2981.6,0.405504]
[1763651905921,0.118,2982.5,2981.6,0.903804]
[1763651906536,0.118,2982.5,2981.6,0.4983]
[1763651906832,0.1831,2983.0,2981.6,0.405504]
[1763651906833,0.90699264,2982.8,2981.6,0.405504]
[1763651907028,0.118,2983.1,2981.8,0.405504]
[1763651907527,0.118,2983.1,2981.5,0.405504]
[1763651907528,0.6032,2983.0,2981.5,0.405504]
[1763651907900,0.6032,2983.0,2981.3,7.20675583]
[1763651907901,0.6032,2983.0,2981.4,0.405504]
[1763651908134,0.1831,2983.4,2981.4,1.81079664]
[1763651908334,0.118,2983.8,2981.9,1.31249664]
[1763651908498,0.118,2983.8,2982.1,0.405504]
[1763651908499,0.6675,2983.4,2982.1,0.405504]
[1763651908830,0.90699264,2983.2,2981.8,0.405504]
[1763651909336,0.90699264,2983.2,2981.9,0.4983]
[1763651909519,0.90699264,2983.2,2981.7,8.11065164]
[1763651909520,0.4852,2983.1,2981.7,0.90699264]
[1763651909828,0.4852,2983.1,2981.6,6.70780788]
[1763651910131,0.118,2983.0,2981.6,7.37858867]
[1763651910436,0.118,2983.0,2981.7,0.405504]
[1763651910651,0.4852,2982.9,2980.9,3.35469153]
[1763651910940,0.4852,2982.9,2980.7,0.4983]
[1763651910941,0.90699264,2982.6,2980.8,6.90510186]
[1763651911098,0.90699264,2982.6,2980.8,7.40340186]
[1763651911299,0.4852,2982.5,2980.8,7.40340186]
[1763651911619,0.90699264,2982.6,2980.8,7.40340186]
[1763651911620,0.90699264,2982.6,2981.1,5.95114093]
[1763651911809,0.90699264,2982.8,2981.3,0.405504]
[1763651911997,0.118,2982.8,2981.3,0.405504]
[1763651912199,0.118,2982.8,2981.4,0.4983]
[1763651912521,0.118,2982.8,2981.5,0.405504]
[1763651912722,0.118,2982.8,2981.7,0.405504]
[1763651913033,0.118,2983.0,2981.9,0.405504]
[1763651913237,0.4938,2983.6,2982.2,1.31249664]
[1763651913548,10.54890531,2983.6,2981.8,1.04672158]
[1763651913779,0.90699264,2983.5,2981.9,0.405504]
[1763651913913,1.40079264,2983.5,2981.8,1.04672158]
[1763651914113,0.6732,2983.4,2981.8,1.04672158]
[1763651914543,0.4938,2983.3,2981.8,1.04672158]
[1763651914748,0.4938,2983.3,2981.1,9.30556532]
[1763651914749,0.90699264,2983.0,2981.1,0.4831]
[1763651914950,0.4938,2982.9,2981.2,3.35435395]
[1763651915136,0.4938,2982.9,2981.1,3.35444475]
[1763651915458,0.4938,2982.9,2980.5,6.7102835]
[1763651915459,0.405504,2982.8,2980.5,6.7102835]
[1763651915750,0.405504,2982.6,2980.6,1.31249664]
[1763651916059,0.118,2982.5,2980.7,0.80227801]
[1763651916214,0.6118,2982.5,2980.8,0.03354804]
[1763651916413,0.4938,2982.5,2980.9,0.6011]
[1763651916621,0.4938,2982.5,2980.7,0.80227801]
[1763651916622,0.118,2982.4,2980.7,0.80227801]
[1763651916845,0.90699264,2982.2,2980.8,6.70960814]
[1763651917032,0.90699264,2982.2,2980.9,0.75118862]
[1763651917235,4.03273713,2982.4,2980.9,2.14128126]
[1763651917554,0.118,2982.3,2981.9,0.001]
[1763651917757,0.6118,2982.3,2981.9,0.001]
[1763651918633,1.51879264,2982.3,2981.9,0.001]
[1763651918834,6.7064583,2982.2,2981.9,0.001]
[1763651919066,0.90699264,2982.1,2981.9,0.001]
[1763651919268,1.39419264,2982.1,2981.9,0.001]
[1763651919476,0.4872,2982.0,2981.9,0.001]
[1763651919659,0.118,2982.0,2981.9,0.001]
[1763651919843,0.6052,2982.0,2981.9,0.001]
[1763651920245,0.90699264,2982.2,2981.9,0.001]
[1763651920451,0.118,2982.1,2981.9,0.001]
[1763651920665,0.6052,2982.1,2981.9,0.001]
[1763651921039,4.26044669,2982.0,2981.9,0.001]
[1763651921305,0.90699264,2981.9,2981.6,0.001]
[1763651921478,0.1831,2981.7,2981.6,0.001]
[1763651921687,3.35345405,2982.0,2981.6,0.001]
[1763651921840,0.118,2981.7,2981.6,0.001]
[1763651922359,0.90699264,2982.2,2981.6,0.001]
[1763651922568,0.118,2981.8,2981.6,0.001]
[1763651923196,0.1794,2983.4,2981.6,0.001]
[1763651923484,7.19122917,2983.3,2981.7,0.4688]
[1763651923651,0.118,2983.2,2981.7,0.4688]
[1763651923852,1.51219264,2983.2,2981.7,0.4688]
[1763651924065,1.51219264,2983.2,2981.6,0.001]
[1763651924391,0.4872,2983.1,2981.6,0.001]
[1763651925077,0.405504,2982.8,2981.6,0.001]
[1763651925279,0.118,2982.7,2981.6,0.001]
[1763651925482,0.4872,2982.6,2981.6,0.001]
[1763651925994,0.118,2982.5,2981.6,0.001]
[1763651926209,0.118,2982.5,2981.6,0.406504]
[1763651926499,0.4872,2983.1,2981.7,0.405504]
[1763651926665,0.118,2983.0,2981.7,0.405504]
[1763651926862,0.118,2983.0,2981.9,0.405504]
[1763651927061,3.35244225,2982.9,2981.6,0.406504]
[1763651927313,0.90699264,2982.8,2981.6,0.001]
[1763651927466,1.39419264,2982.8,2981.6,3.35488756]
[1763651927865,1.39419264,2982.8,2981.6,6.7087915]
[1763651928061,0.4872,2982.7,2981.6,3.35488756]
[1763651928263,0.4864,2982.7,2981.6,0.001]
[1763651928579,0.4864,2982.7,2981.6,3.35489627]
[1763651928781,0.4864,2982.7,2981.6,0.001]
[1763651929187,13.4111178,2982.6,2981.6,0.001]
[1763651929361,1.02499264,2982.5,2981.6,0.001]
[1763651930260,0.4872,2982.4,2981.6,0.001]
[1763651931201,6.7064583,2982.2,2981.6,0.001]
[1763651931563,0.90699264,2982.1,2981.6,0.001]
[1763651931964,0.118,2982.0,2981.6,0.4698]
[1763651932377,0.118,2982.0,2981.6,0.001]
[1763651932899,0.3053,2982.0,2981.6,0.001]
[1763651933102,3.35367898,2981.8,2981.6,0.001]
[1763651933302,0.90699264,2981.7,2981.6,0.001]
[1763651933601,1.02499264,2981.7,2981.6,0.001]
[1763651934009,1.51219264,2981.7,2981.6,0.001]
[1763651934800,0.90699264,2981.8,2981.6,0.001]
[1763651935011,3.3535891,2981.9,2981.6,0.001]
[1763651935309,4.3787841,2981.7,2981.6,0.001]
[1763651935807,4.8659841,2981.7,2981.6,0.001]
[1763651936400,4.3787841,2981.7,2981.6,0.001]
[1763651936780,4.7479841,2981.7,2981.6,0.001]
[1763651936984,4.8659841,2981.7,2981.6,0.001]
[1763651937570,5.52584943,2981.7,2981.6,0.001]
[1763651937776,4.66740264,2981.6,2981.3,0.001]
[1763651937983,1.79969664,2981.6,2981.3,0.001]
[1763651938189,0.4872,2981.5,2981.3,0.001]
[1763651938808,0.405504,2981.4,2981.0,0.001]
[1763651938981,0.405504,2981.2,2981.0,0.001]
[1763651939181,4.26145911,2981.1,2981.0,0.001]
[1763651939507,4.86665911,2981.1,2981.0,0.001]
[1763651939710,4.74865911,2981.1,2981.0,0.001]
[1763651940007,4.86665911,2981.1,2981.0,0.001]
[1763651940510,4.37945911,2981.1,2981.0,0.001]
[1763651940714,4.86665911,2981.1,2981.0,0.001]
[1763651941019,4.86665911,2981.1,2978.9,0.89132739]
[1763651941020,1.31249664,2980.8,2978.9,0.89132739]
[1763651941334,0.1881,2979.0,2978.5,0.001]
[1763651941519,0.118,2978.9,2978.5,0.001]
[1763651941694,0.6052,2978.9,2978.5,0.001]
[1763651942018,0.405504,2978.8,2978.5,0.001]
[1763651942205,0.1881,2979.0,2978.5,0.001]
[1763651942206,0.118,2978.7,2978.5,0.001]
[1763651942406,1.18391799,2979.8,2978.5,0.001]
[1763651942407,0.4872,2980.5,2978.9,0.1806]
[1763651942611,0.118,2980.1,2979.0,0.50236831]
[1763651942810,3.84234795,2980.5,2979.0,0.50236831]
[1763651942811,0.4872,2980.5,2979.1,0.405504]
[1763651943011,0.4872,2980.5,2978.9,1.08759264]
[1763651943012,0.118,2980.4,2979.3,0.405504]
[1763651943213,0.118,2980.4,2979.4,3.82518047]
[1763651943414,0.118,2980.4,2979.5,0.38251805]
[1763651943793,1.00099264,2981.0,2979.5,0.85131805]
[1763651944025,4.72535427,2982.2,2979.5,0.85131805]
[1763651944026,0.118,2980.9,2979.6,0.874304]
[1763651944330,3.54252735,2981.2,2979.7,0.405504]
[1763651944488,0.118,2980.8,2979.7,0.874304]
[1763651944691,0.118,2980.8,2979.7,0.4688]
[1763651945101,0.118,2980.8,2979.8,6.71185984]
[1763651945303,0.1236,2980.9,2979.8,6.71185984]
[1763651945304,0.1881,2981.2,2979.9,0.71806598]
[1763651945560,0.4872,2981.6,2980.0,0.405504]
[1763651945695,0.118,2981.5,2980.2,0.405504]
[1763651945889,0.118,2981.4,2980.4,0.405504]
[1763651946114,0.118,2981.5,2980.4,0.405504]
[1763651946423,0.118,2981.5,2980.6,0.405504]
[1763651946809,0.118,2981.5,2980.8,0.405504]
[1763651947348,0.118,2981.7,2980.6,0.1806]
[1763651947696,0.118,2981.7,2980.0,0.6494]
[1763651947844,0.892704,2981.6,2980.0,0.6494]
[1763651948032,0.118,2981.5,2980.0,7.36080918]
[1763651948234,0.4872,2981.6,2980.1,1.18898092]
[1763651948433,0.1881,2982.0,2980.2,0.4529]
[1763651948657,0.405504,2981.8,2980.2,0.4529]
[1763651948847,0.405504,2981.6,2980.0,3.53630449]
[1763651949053,0.4652,2981.8,2980.1,0.4529]
[1763651949229,0.118,2981.7,2980.3,10.0661007]
[1763651949434,0.118,2981.7,2980.6,0.405504]
[1763651949634,0.118,2981.7,2981.6,0.1803]
[1763651949867,0.002,2982.5,2981.6,0.1803]
[1763651950071,0.12,2982.5,2981.7,0.4529]
[1763651950270,0.12,2982.5,2981.6,0.1803]
[1763651950572,0.12,2982.5,2981.2,0.4529]
[1763651950573,0.4652,2982.4,2981.2,0.4529]
[1763651950770,0.4652,2982.4,2981.1,0.1803]
[1763651950771,6.82579284,2982.5,2981.3,0.4529]
[1763651950932,0.4652,2982.4,2980.7,0.4529]
[1763651951135,1.31249664,2982.1,2980.3,0.4529]
[1763651951571,0.4652,2982.0,2980.3,3.8082669]
[1763651951768,0.4652,2982.0,2980.3,0.4529]
[1763651951769,0.405504,2981.8,2980.3,0.4529]
[1763651952102,0.405504,2981.8,2980.4,0.4529]
[1763651952285,0.4652,2981.7,2980.1,6.71109061]
[1763651952498,3.81831762,2982.3,2980.5,0.4529]
[1763651952665,1.02499264,2982.2,2980.8,0.405504]
[1763651952986,0.118,2982.2,2980.8,0.405504]
[1763651953305,7.1718832,2982.1,2980.9,3.53496305]
[1763651953797,7.1718832,2982.1,2980.9,3.5349574]
[1763651953998,1.09259264,2982.0,2980.1,7.14945405]
[1763651954203,5.930981,2981.9,2979.8,0.1806]
[1763651954362,5.930981,2981.9,2980.1,0.03355592]
[1763651954363,1.37219264,2981.9,2980.1,0.03355592]
[1763651954562,0.405504,2981.7,2980.1,0.4529]
[1763651954883,0.118,2981.6,2980.1,0.4529]
[1763651955100,0.5832,2981.6,2980.1,1.18746862]
[1763651955395,0.90699264,2981.3,2980.1,1.18746862]
[1763651955565,0.90699264,2981.3,2980.1,3.80848646]
[1763651955761,0.90699264,2981.3,2980.1,7.16407855]
[1763651956072,0.90699264,2981.3,2980.1,3.80848921]
[1763651956464,0.90699264,2981.3,2980.0,0.001]
[1763651956465,0.4652,2981.2,2980.0,0.001]
[1763651957407,0.90699264,2981.0,2980.0,0.001]
[1763651957622,0.118,2980.9,2980.0,0.1813]
[1763651957762,0.90699264,2981.1,2980.0,0.6342]
[1763651958075,0.118,2981.0,2980.0,0.6342]
[1763651958273,0.118,2980.9,2980.1,0.4529]
[1763651958469,0.90699264,2981.6,2980.1,0.4529]
[1763651958808,0.405504,2981.4,2980.0,0.001]
[1763651959280,6.70870018,2982.1,2981.3,0.1803]
[1763651959478,0.3011,2982.0,2980.4,0.405504]
[1763651959679,1.20809264,2982.0,2980.4,0.405504]
[1763651959879,1.20809264,2982.0,2980.5,0.4529]
[1763651960707,0.4652,2981.9,2980.3,0.90699264]
[1763651961004,0.118,2981.8,2980.5,0.4529]
[1763651961161,0.118,2981.8,2980.3,0.90699264]
[1763651961365,0.118,2981.8,2980.0,0.859404]
[1763651961366,0.90699264,2981.6,2980.1,3.35559209]
[1763651961601,0.405504,2981.5,2980.0,0.001]
[1763651961789,0.870704,2981.5,2980.0,0.001]
[1763651961987,0.405504,2981.3,2980.0,0.001]
[1763651962297,0.118,2981.2,2980.0,0.001]
[1763651962500,0.4652,2981.2,2980.0,0.001]
[1763651962667,0.118,2981.1,2980.0,3.53695579]
[1763651962999,0.4652,2981.2,2980.0,3.89065137]
[1763651963000,0.118,2981.0,2980.0,3.89065137]
[1763651963168,0.118,2981.0,2980.0,0.1813]
[1763651963371,6.70960814,2980.8,2980.0,0.001]
[1763651963894,0.118,2980.7,2980.0,3.35668502]
[1763651964265,3.35538736,2982.1,2980.2,0.405504]
[1763651964266,0.52611309,2981.2,2980.2,0.405504]
[1763651964517,0.002,2982.1,2981.1,0.585804]
[1763651964666,0.002,2982.1,2981.2,0.858404]
[1763651964865,0.002,2982.1,2981.2,0.4529]
[1763651965065,0.1831,2982.0,2981.1,0.1803]
[1763651965311,3.35356651,2981.9,2981.1,0.1803]
[1763651965964,1.49019264,2981.8,2980.1,0.4529]
[1763651966203,8.717004,2981.4,2980.0,0.001]
[1763651966459,0.1906,2980.1,2980.0,0.001]
[1763651966576,0.3086,2980.1,2980.0,0.001]
[1763651966778,0.1906,2980.1,2980.0,0.001]
[1763651967006,0.3086,2980.1,2980.0,0.001]
[1763651967170,0.3086,2980.1,2979.7,0.001]
[1763651967171,10.756728,2980.1,2979.7,0.001]
[1763651967365,4.85902656,2979.8,2979.7,0.001]
[1763651967800,4.91872256,2979.8,2979.7,0.001]
[1763651968004,1.02499264,2979.8,2979.7,0.001]
[1763651968206,4.38092256,2979.8,2979.7,0.001]
[1763651968507,4.96722256,2979.8,2979.7,0.001]
[1763651968864,5.37272656,2979.8,2979.7,0.001]
[1763651970069,1.31249664,2979.7,2979.4,0.001]
[1763651970304,5.830285,2979.3,2978.5,0.001]
[1763651970504,0.405504,2979.1,2978.5,0.001]
[1763651970872,0.118,2979.0,2978.5,0.001]
[1763651971407,0.405504,2978.6,2978.5,0.001]
[1763651971766,0.870704,2978.6,2978.5,0.001]
[1763651972204,0.4652,2978.6,2978.5,0.001]
[1763651972414,0.4652,2979.2,2978.5,0.001]
[1763651972570,0.118,2979.1,2978.5,0.001]
[1763651973073,0.5832,2979.1,2978.5,0.001]
[1763651973273,0.90699264,2978.8,2978.5,0.001]
[1763651973892,0.4652,2978.7,2978.5,0.001]
[1763651974110,0.118,2978.6,2978.5,0.001]
[1763651975505,3.47528194,2978.6,2978.5,0.001]
[1763651976028,0.118,2978.6,2978.5,0.001]
[1763651976235,0.1172,2978.6,2978.5,0.001]
[1763651976397,3.47448194,2978.6,2978.5,0.001]
[1763651977021,4.87627458,2978.6,2978.5,0.001]
[1763651977232,12.74519358,2978.6,2978.5,0.001]
[1763651977444,12.74519358,2978.6,2976.6,0.1803]
[1763651977445,9.48881876,2978.4,2976.6,0.1803]
[1763651977598,9.48881876,2978.4,2975.6,1.19831312]
[1763651977599,0.0992,2977.6,2975.6,3.83245774]
[1763651977803,1.02499264,2977.5,2975.7,0.38324577]
[1763651978150,1.31249664,2977.1,2975.4,0.1803]
[1763651978299,0.405504,2977.4,2975.4,3.54119265]
[1763651978300,0.405504,2976.9,2975.4,3.54119265]
[1763651978500,0.405504,2976.9,2975.4,0.1803]
[1763651978837,0.405504,2976.7,2975.4,0.1803]
[1763651979048,0.405504,2976.7,2974.5,4.04619817]
[1763651979049,7.49453,2976.5,2974.5,4.04619817]
[1763651979348,0.1805,2975.5,2974.6,0.40461982]
[1763651979533,0.1805,2975.5,2974.5,3.55580139]
[1763651979534,3.47889265,2975.4,2974.5,3.55580139]
[1763651979734,1.051504,2976.0,2974.5,3.55580139]
[1763651979931,0.1805,2976.4,2974.6,0.4905]
[1763651980131,0.4655,2977.2,2975.0,0.405504]
[1763651980309,3.82447192,2977.2,2975.2,0.405504]
[1763651980509,0.405504,2977.0,2975.3,0.4905]
[1763651980957,0.871004,2977.0,2975.3,0.4905]
[1763651981417,0.90699264,2976.8,2975.4,10.08267795]
[1763651981639,0.118,2976.7,2975.4,10.08267795]
[1763651981828,0.118,2976.7,2975.5,1.5478178]
[1763651982249,0.118,2976.7,2975.6,0.6844]
[1763651982733,0.90699264,2976.9,2975.7,0.4905]
[1763651982930,0.90699264,2977.2,2975.7,0.4905]
[1763651983164,0.118,2977.1,2975.7,0.4905]
[1763651983474,0.118,2977.0,2975.8,10.08132264]
[1763651983629,1.02499264,2977.0,2975.9,1.05718226]
[1763651983986,0.118,2976.9,2975.9,1.54768226]
[1763651984160,0.118,2976.9,2976.0,0.4905]
[1763651984780,0.118,2976.9,2975.7,6.72108119]
[1763651984979,0.118,2976.8,2976.0,0.4905]
[1763651985186,0.90699264,2977.6,2976.1,0.43910502]
[1763651985482,3.35863505,2977.4,2976.1,3.36010214]
[1763651985632,0.90699264,2977.3,2976.1,3.36010214]
[1763651986057,0.90699264,2977.3,2976.1,6.72020428]
[1763651986281,0.4655,2977.2,2976.0,3.85063213]
[1763651986435,0.4655,2977.2,2976.0,3.36013213]
[1763651986636,0.4655,2977.2,2976.1,0.4905]
[1763651986932,0.90699264,2977.3,2976.1,0.4905]
[1763651987152,0.1805,2977.6,2976.1,0.4905]
[1763651987368,1.02499264,2977.5,2976.2,1.39312773]
[1763651987544,1.02499264,2977.5,2976.3,3.35987635]
[1763651987545,0.90699264,2977.3,2976.3,3.35987635]
[1763651987750,0.90699264,2977.3,2976.3,7.2102527]
[1763651988053,0.4655,2979.2,2977.2,1.10089264]
[1763651988379,0.118,2979.1,2977.8,0.1939]
[1763651988532,0.118,2979.0,2977.8,0.1939]
[1763651988732,0.118,2979.0,2977.8,0.6844]
[1763651989057,3.47704782,2979.8,2977.9,0.405504]
[1763651989256,7.29849564,2979.8,2977.9,0.896004]
[1763651989448,1.49049264,2979.7,2977.9,0.896004]
[1763651989646,0.90699264,2979.5,2978.0,7.20641672]
[1763651989957,0.118,2979.4,2977.9,3.35807112]
[1763651990272,0.118,2979.4,2978.0,0.4905]
[1763651990571,0.118,2979.3,2978.0,0.4905]
[1763651990740,0.118,2979.2,2978.1,0.72066422]
[1763651990935,0.118,2979.1,2978.1,0.72066422]
[1763651991234,0.118,2979.0,2978.1,0.72066422]
[1763651991455,0.118,2979.0,2978.2,0.4905]
[1763651991665,3.35694383,2978.9,2977.8,3.55208078]
[1763651991865,6.71388766,2978.9,2977.9,0.74007963]
[1763651992077,3.35615518,2979.6,2978.0,0.405504]
[1763651992078,0.90699264,2979.6,2978.0,0.405504]
[1763651992283,0.90699264,2979.6,2978.1,0.4905]
[1763651992465,0.118,2979.5,2978.1,0.4905]
[1763651992858,0.118,2979.4,2978.1,0.4905]
[1763651993180,0.002,2979.8,2978.2,1.31249664]
[1763651993367,0.002,2979.8,2978.3,1.38654083]
[1763651993368,0.118,2979.6,2978.3,1.38654083]
[1763651993567,0.118,2979.6,2978.4,6.71501476]
[1763651993568,4.26326047,2979.5,2978.4,6.71501476]
[1763651993882,0.90699264,2979.4,2978.4,0.4905]
[1763651994474,0.90699264,2979.4,2978.0,0.4905]
[1763651994677,0.4655,2979.3,2978.0,0.4905]
[1763651994888,0.4655,2979.3,2977.8,0.1939]
[1763651995193,0.90699264,2979.5,2977.8,7.40076193]
[1763651995363,0.118,2979.2,2977.8,7.40076193]
[1763651995560,0.118,2979.1,2978.0,6.71591672]
[1763651995867,0.118,2979.1,2978.0,7.7917662]
[1763651996069,6.71298626,2979.3,2978.0,8.2822662]
[1763651996376,0.118,2979.0,2978.0,8.2822662]
[1763651996585,0.118,2979.0,2978.0,4.92430784]
[1763651996802,0.118,2979.0,2977.9,3.35802892]
[1763651996972,0.1805,2978.9,2977.9,6.71610004]
[1763651997154,3.35640242,2979.4,2978.0,0.4905]
[1763651997356,1.02499264,2979.3,2978.0,0.4905]
[1763651997698,0.90699264,2979.5,2978.2,10.07319855]
[1763651997880,0.118,2979.4,2978.2,6.7154657]
[1763651998208,0.90699264,2979.5,2978.3,0.4905]
[1763651998498,0.118,2979.4,2978.4,0.405504]
[1763651998991,0.118,2979.4,2978.4,0.4905]
[1763651999573,0.002,2979.8,2978.5,10.47768798]
[1763651999795,0.002,2979.8,2979.3,0.1939]
[1763652000004,0.118,2979.7,2979.3,0.1939]
[1763652000494,0.0012,2979.8,2979.3,0.6844]
[1763652000659,0.0012,2979.8,2979.4,0.405504]
[1763652000866,0.0012,2979.8,2979.4,0.896004]
[1763652001193,0.0012,2979.8,2979.4,0.4905]
[1763652001498,0.0012,2979.8,2979.5,0.4905]
[1763652001714,0.0012,2979.8,2979.0,3.35676218]
[1763652001888,0.0012,2979.8,2979.0,0.1939]
[1763652002270,0.0012,2979.8,2979.0,0.6844]
[1763652002477,0.0012,2979.8,2979.0,1.59139264]
[1763652002676,0.0012,2979.8,2979.0,1.10089264]
[1763652002883,0.0012,2979.8,2979.2,0.405504]
[1763652003084,0.0012,2979.8,2979.2,0.19968966]
[1763652003270,0.0012,2979.8,2979.3,0.4905]
[1763652003758,0.0012,2979.8,2979.4,10.06914141]
[1763652004128,0.002,2980.1,2979.7,1.31249664]
[1763652004340,0.002,2980.4,2979.9,0.405504]
[1763652004622,0.118,2981.5,2980.3,0.599404]
[1763652004933,0.118,2981.5,2980.3,0.1939]
[1763652005089,0.118,2981.5,2980.3,0.6844]
[1763652005506,0.118,2981.5,2980.4,0.4905]
[1763652005732,0.90699264,2981.2,2980.0,0.1721]
[1763652006035,0.118,2981.1,2980.0,4.01830469]
[1763652006193,0.118,2981.1,2980.0,0.6626]
[1763652006386,0.1581,2980.1,2979.1,0.1939]
[1763652006587,0.118,2980.0,2978.3,0.6844]
[1763652006812,0.405504,2979.9,2978.3,0.6844]
[1763652007022,0.405504,2979.7,2978.0,0.1939]
[1763652007231,0.4655,2979.8,2978.1,0.90699264]
[1763652007538,0.4655,2979.7,2978.1,0.4905]
[1763652007855,0.90699264,2979.4,2978.1,3.84829271]
[1763652008030,0.90699264,2979.4,2978.0,0.1939]
[1763652008242,0.4655,2979.3,2977.8,0.1939]
[1763652009503,0.4655,2979.3,2978.0,0.001]
[1763652009722,3.51379382,2980.1,2978.0,0.001]
[1763652009723,0.646,2980.1,2978.0,0.001]
[1763652010032,0.002,2980.4,2978.0,0.001]
[1763652010033,0.6059,2980.0,2978.1,1.37899264]
[1763652010230,0.6059,2980.0,2978.2,1.14538677]
[1763652010728,0.4879,2980.0,2978.3,0.472]
[1763652011025,13.61083155,2980.4,2978.4,0.405504]
[1763652011026,7.38814673,2980.4,2978.4,0.405504]
[1763652011197,0.1897,2980.4,2978.6,0.405504]
[1763652011395,0.12,2980.4,2979.0,1.31249664]
[1763652011677,0.12,2980.4,2979.2,0.405504]
[1763652011959,0.12,2980.4,2979.3,10.06947939]
[1763652012118,7.31848146,2980.4,2979.2,3.3566058]
[1763652012319,7.31848146,2980.4,2979.1,0.183]
[1763652012637,6.83058146,2980.4,2979.2,0.472]
[1763652012844,6.83058146,2980.4,2979.3,0.40117185]
[1763652013031,0.118,2980.3,2979.3,0.40117185]
[1763652013449,1.51289264,2980.3,2978.3,3.35760669]
[1763652013770,0.90699264,2980.1,2978.6,1.31249664]
[1763652014269,0.118,2980.0,2978.8,0.405504]
[1763652014564,0.118,2980.0,2978.9,0.183]
[1763652014918,0.118,2980.0,2979.0,0.472]
[1763652015655,0.4899,2980.4,2979.1,0.405504]
[1763652015656,0.002,2980.4,2979.1,0.405504]
[1763652015880,0.002,2980.4,2979.3,1.31249664]
[1763652016033,1.39689264,2980.4,2979.0,0.472]
[1763652016221,1.39689264,2980.4,2978.5,0.405504]
[1763652016222,1.39689264,2980.4,2978.6,0.90699264]
[1763652016426,2.005876,2980.1,2978.3,0.472]
[1763652016665,0.118,2980.0,2978.3,7.18722731]
[1763652016836,0.118,2980.0,2978.4,1.0544918]
[1763652017165,0.118,2979.9,2978.5,0.405504]
[1763652017364,0.118,2979.9,2978.5,0.877504]
[1763652017876,0.4879,2979.8,2978.5,0.472]
[1763652018041,6.7120851,2979.7,2978.6,3.35728194]
[1763652018236,6.7120851,2979.7,2978.7,0.38292819]
[1763652018464,6.7120851,2979.7,2978.5,0.472]
[1763652018465,1.39489264,2979.6,2978.2,6.7154657]
[1763652018853,0.90699264,2979.6,2978.2,6.7154657]
[1763652019054,0.4879,2979.5,2978.2,3.35773285]
[1763652019280,0.4879,2979.5,2978.2,6.7154657]
[1763652019487,0.4879,2979.5,2978.3,0.71874657]
[1763652019995,0.90699264,2979.3,2978.4,3.35750738]
[1763652020185,0.118,2979.2,2978.4,3.35750738]
[1763652020386,0.118,2979.2,2978.4,6.71501476]
[1763652020594,0.118,2979.1,2978.5,0.472]
[1763652020762,0.118,2979.1,2978.0,0.406504]
[1763652020969,0.4879,2979.0,2978.0,0.001]
[1763652021194,0.405504,2978.9,2978.0,0.001]
[1763652021583,0.405504,2978.7,2978.0,0.001]
[1763652021876,0.1509,2978.1,2978.0,0.001]
[1763652022076,4.53373824,2978.1,2978.0,0.001]
[1763652022301,5.02163824,2978.1,2978.0,0.001]
[1763652022505,0.90699264,2978.1,2978.0,0.001]
[1763652022683,0.118,2978.1,2978.0,0.001]
[1763652023793,0.6059,2978.1,2978.0,0.001]
[1763652024005,3.9637456,2978.1,2978.0,0.001]
[1763652024219,3.8449456,2978.1,2978.0,0.001]
[1763652024375,3.9629456,2978.1,2978.0,0.001]
[1763652024574,3.4758456,2978.1,2978.0,0.001]
[1763652024772,0.1877,2978.5,2978.0,0.001]
[1763652025084,0.90699264,2978.3,2978.0,0.001]
[1763652026199,6.7154657,2978.2,2978.0,0.001]
[1763652026404,3.35773285,2978.2,2978.0,0.001]
[1763652026739,0.118,2978.1,2978.0,0.001]
[1763652027188,0.6059,2978.1,2978.0,0.001]
[1763652027386,0.118,2978.1,2978.0,0.001]
[1763652027885,1.91839664,2978.1,2978.0,0.001]
[1763652028126,5.27624224,2978.1,2978.0,0.001]
[1763652028287,4.26483824,2978.1,2978.0,0.001]
[1763652028486,4.38283824,2978.1,2978.0,0.001]
[1763652028739,0.90699264,2978.3,2978.0,0.001]
[1763652028948,0.118,2978.1,2978.0,0.001]
[1763652029750,0.1877,2978.8,2978.0,0.001]
[1763652029902,0.4879,2979.7,2978.2,0.183]
[1763652030090,0.4879,2979.7,2978.3,10.07286033]
[1763652030091,0.118,2979.6,2978.3,10.07286033]
[1763652030390,0.1877,2980.1,2978.3,10.07286033]